[Event "Vienna Chess Open 2019"]
[Site "Vienna"]
[Date "2019.08.17"]
[Round "1.1"]
[White "Albadri Abd Al Sattar"]
[Black "Dastan, Muhammed Batuhan"]
[Result "0-1"]
[ECO "A83"]
[WhiteElo "2158"]
[BlackElo "2582"]
[Annotator "ChessBase"]
[PlyCount "62"]
[EventDate "2019.08.17"]
[EventType "swiss"]
[EventCountry "AUT"]
[SourceTitle "playchess.com"]
[Source "ChessBase"]
[SourceQuality "1"]
[TimeControl "40/5400+30:1800+30"]

1. d4 {[%emt 0:00:10]} f5 {[%emt 0:00:00]} 2. e4 {[%emt 0:01:21]} fxe4 {[%emt 0:00:21]} 3. Nc3 {[%emt 0:00:03]} Nf6 {[%emt 0:00:25]} 4. Bg5 {[%emt 0:00:13]} Nc6 {[%emt 0:01:18]} 5. d5 {[%emt 0:00:51]} Ne5 {[%emt 0:00:12]} 6. Qe2 {[%emt 0:00:21]} Nf7 {[%emt 0:16:21]} 7. Bxf6 {[%emt 0:01:18]} exf6 {[%emt 0:00:08]} 8. Nxe4 {[%emt 0:00:18]} Bb4+ {[%emt 0:00:29]} 9. c3 {[%emt 0:01:15]} Be7 {[%emt 0:00:05]} 10. d6 {[%emt 0:00:23]} cxd6 {[%emt 0:00:32]} 11. O-O-O {[%emt 0:00:11]} O-O {[%emt 0:00:21]} 12. f4 {[%emt 0:00:30]} f5 {[%emt 0:04:19]} 13. Ng3 {[%emt 0:01:15]} g6 {[%emt 0:00:05]} 14. Nf3 {[%emt 0:00:34]} Bf6 {[%emt 0:03:30]} 15. Qc4 {[%emt 0:09:03]} Rb8 {[%emt 0:04:34]} 16. h4 {[%emt 0:07:45]} b5 {[%emt 0:01:35]} 17. Qb3 {[%emt 0:00:33]} Qb6 {[%emt 0:04:27]} 18. Rd5 {[%emt 0:22:55]} Qe3+ {[%emt 0:05:41]} 19. Kb1 {[%emt 0:07:42]} Qxf4 {[%emt 0:10:31]} 20. Nh5 gxh5 {[%emt 0:00:54]} 21. Bd3 {[%emt 0:03:04]} Qa4 {[%emt 0:02:08]} 22. Rxf5 {[%emt 0:00:23]} Qxb3 {[%emt 0:00:06]} 23. axb3 {[%emt 0:00:16]} Ne5 {[%emt 0:00:35]} 24. Nxe5 {[%emt 0:02:09]} dxe5 {[%emt 0:00:05]} 25. Rxh5 {[%emt 0:00:07]} Rf7 {[%emt 0:01:02]} 26. Rf1 {[%emt 0:01:20]} Rb6 {[%emt 0:00:24]} 27. g4 {[%emt 0:00:53]} d5 {[%emt 0:00:59]} 28. g5 {[%emt 0:02:36]} e4 {[%emt 0:03:15]} 29. Bxb5 {[%emt 0:15:30]} Bg4 {[%emt 0:02:00]} 30. Rh6 {[%emt 0:00:25]} Bg7 {[%emt 0:01:10]} 31. Rxb6 {[%emt 0:06:00]} Rxf1+ {[%emt 0:00:29]} 0-1

[Event "Vienna Chess Open 2019"]
[Site "Vienna"]
[Date "2019.08.17"]
[Round "1.1"]
[White "Leskiewicz, Ignacy"]
[Black "Stanec, Nikolaus"]
[Result "0-1"]
[ECO "B12"]
[WhiteElo "2146"]
[BlackElo "2483"]
[Annotator "ChessBase"]
[PlyCount "74"]
[EventDate "2019.08.17"]
[EventType "swiss"]
[EventCountry "AUT"]
[SourceTitle "playchess.com"]
[Source "ChessBase"]
[SourceQuality "1"]
[TimeControl "40/5400+30:1800+30"]

1. e4 {[%emt 0:00:00]} c6 {[%emt 0:00:27]} 2. d4 {[%emt 0:00:18]} g6 {[%emt 0:00:08]} 3. Bd3 {[%emt 0:05:06]} Bg7 {[%emt 0:01:33]} 4. Ne2 {[%emt 0:00:47]} d6 {[%emt 0:00:45]} 5. O-O {[%emt 0:12:46]} Nf6 {[%emt 0:01:06]} 6. c4 {[%emt 0:04:48]} O-O {[%emt 0:01:49]} 7. Nbc3 {[%emt 0:00:09]} Nbd7 {[%emt 0:01:18]} 8. h3 {[%emt 0:06:03]} a6 {[%emt 0:01:15]} 9. f4 {[%emt 0:13:10]} e5 {[%emt 0:01:25]} 10. fxe5 {[%emt 0:03:44]} dxe5 {[%emt 0:00:35]} 11. d5 {[%emt 0:00:37]} cxd5 {[%emt 0:03:31]} 12. cxd5 {[%emt 0:13:03]} Ne8 {[%emt 0:02:22]} 13. Be3 {[%emt 0:02:05]} Nd6 {[%emt 0:01:30]} 14. Qc2 {[%emt 0:08:15]} Qe7 {[%emt 0:12:02]} 15. Rac1 {[%emt 0:02:16]} b5 {[%emt 0:04:53]} 16. b4 {[%emt 0:01:14]} f5 {[%emt 0:05:29]} 17. a4 {[%emt 0:06:18]} f4 {[%emt 0:02:16]} 18. Bd2 {[%emt 0:00:01]} f3 {[%emt 0:06:31]} 19. gxf3 {[%emt 0:03:30]} Nf6 {[%emt 0:08:57]} 20. h4 {[%emt 0:04:34]} Bh3 {[%emt 0:04:41]} 21. Ng3 {[%emt 0:04:04]} Nh5 {[%emt 0:06:18]} 22. Bg5 {[%emt 0:01:42]} Qa7+ {[%emt 0:00:10]} 23. Qf2 {[%emt 0:02:01]} Rxf3 {[%emt 0:02:34]} 24. Qxa7 {[%emt 0:01:29]} Rxg3+ {[%emt 0:00:07]} 25. Kh2 {[%emt 0:00:31]} Rxa7 {[%emt 0:00:07]} 26. Rfd1 {[%emt 0:01:03]} Bg4 {[%emt 0:02:39]} 27. Be2 {[%emt 0:02:24]} Rf7 {[%emt 0:01:29]} 28. Rf1 {[%emt 0:01:13]} h6 {[%emt 0:05:30]} 29. Rxf7 {[%emt 0:00:24]} Kxf7 {[%emt 0:00:40]} 30. axb5 {[%emt 0:00:29]} axb5 {[%emt 0:00:30]} 31. Bd8 {[%emt 0:00:52]} Bxe2 {[%emt 0:04:34]} 32. Nxe2 {[%emt 0:00:19]} Re3 {[%emt 0:00:06]} 33. Rc2 {[%emt 0:00:41]} Rxe4 {[%emt 0:01:32]} 34. Bc7 {[%emt 0:00:27]} Bf8 {[%emt 0:00:33]} 35. Nc3 {[%emt 0:00:30]} Rxh4+ {[%emt 0:00:30]} 36. Kg1 {[%emt 0:00:03]} Rxb4 {[%emt 0:00:48]} 37. Rf2+ {[%emt 0:00:01]} Nf4 {[%emt 0:00:14]} 0-1

[Event "Vienna Chess Open 2019"]
[Site "Vienna"]
[Date "2019.08.17"]
[Round "1.1"]
[White "Hupfer, Robert"]
[Black "Bakhmatsky, Vladislav"]
[Result "0-1"]
[ECO "D85"]
[WhiteElo "2133"]
[BlackElo "2442"]
[Annotator "NA"]
[PlyCount "112"]
[EventDate "2019.08.17"]
[EventType "swiss"]
[EventCountry "AUT"]
[SourceTitle "playchess.com"]
[Source "ChessBase"]
[SourceQuality "1"]
[TimeControl "40/5400+30:1800+30"]

1. d4 {[%emt 0:00:00]} Nf6 {[%emt 0:00:00]} 2. c4 {[%emt 0:00:00]} g6 {[%emt 0:00:00]} 3. Nc3 {[%emt 0:00:00]} d5 {[%emt 0:00:10]} 4. cxd5 {[%emt 0:00:35]} Nxd5 {[%emt 0:00:04]} 5. Bd2 {[%emt 0:00:52]} Nb6 {[%emt 0:00:33]} 6. Nf3 {[%emt 0:00:58]} Bg7 {[%emt 0:00:21]} 7. Bf4 {[%emt 0:00:29]} O-O {[%emt 0:03:28]} 8. Rc1 {[%emt 0:05:14]} c5 {[%emt 0:23:00]} 9. dxc5 {[%emt 0:10:24]} Bxc3+ {[%emt 0:01:10]} 10. bxc3 {[%emt 0:16:57]} Qxd1+ {[%emt 0:00:30]} 11. Rxd1 {[%emt 0:01:18]} Na4 {[%emt 0:00:57]} 12. g3 {[%emt 0:06:04]} Nxc3 {[%emt 0:14:08]} 13. Rd2 {[%emt 0:01:36]} Na6 {[%emt 0:01:50]} 14. Rc2 {[%emt 0:13:08]} Na4 {[%emt 0:09:04]} 15. c6 {[%emt 0:09:49]} bxc6 {[%emt 0:00:41]} 16. Bg2 {[%emt 0:02:57]} Be6 {[%emt 0:14:38]} 17. O-O {[%emt 0:03:32]} Bd5 {[%emt 0:17:10]} 18. Re1 {[%emt 0:11:31]} c5 {[%emt 0:03:13]} 19. e4 {[%emt 0:03:51]} Be6 {[%emt 0:03:09]} 20. a3 {[%emt 0:01:00]} Bb3 {[%emt 0:01:02]} 21. Rcc1 {[%emt 0:00:43]} c4 {[%emt 0:00:53]} 22. Nd2 {[%emt 0:03:01]} N6c5 {[%emt 0:00:32]} 23. Bf1 {[%emt 0:03:09]} c3 {[%emt 0:00:05]} 24. Nb1 {[%emt 0:03:08]} c2 {[%emt 0:00:06]} 25. Nd2 {[%emt 0:00:05]} Rfd8 {[%emt 0:04:06]} 26. Nxb3 {[%emt 0:00:20]} Nxb3 {[%emt 0:00:03]} 27. Rxc2 {[%emt 0:00:06]} Nd4 {[%emt 0:00:01]} 28. Rcc1 {[%emt 0:01:58]} Nf3+ {[%emt 0:00:02]} 29. Kg2 {[%emt 0:00:06]} Nxe1+ {[%emt 0:00:04]} 30. Rxe1 {[%emt 0:00:02]} Nc5 {[%emt 0:00:49]} 31. Re3 {[%emt 0:01:40]} Rac8 {[%emt 0:01:32]} 32. e5 {[%emt 0:00:10]} Ne6 {[%emt 0:00:14]} 33. Bh6 {[%emt 0:00:17]} Rc5 {[%emt 0:01:57]} 34. Re1 {[%emt 0:01:24]} g5 {[%emt 0:00:13]} 35. h4 {[%emt 0:00:16]} gxh4 {[%emt 0:00:29]} 36. gxh4 Kh8 37. Re3 Rg8+ 38. Kh2 Rg6 39. Bg5 Nxg5 40. hxg5 Rxg5 41. f4 Rc2+ 42. Kh3 Rg1 43. Bb5 Rgc1 44. Kg4 Rc3 45. Re2 Rxa3 46. Kf5 Rb3 47. Be8 Kg7 48. Rg2+ Kf8 49. Bd7 e6+ 50. Kf6 Rf3 51. Rg4 h5 52. Rh4 Rg1 53. Bxe6 Rg6+ 54. Kf5 Rxe6 55. Rxh5 Rb6 56. Kg4 Rf1 0-1

[Event "Vienna Chess Open 2019"]
[Site "Vienna"]
[Date "2019.08.17"]
[Round "1.2"]
[White "Buhmann, Rainer"]
[Black "Meijer, Johannes"]
[Result "1-0"]
[ECO "A06"]
[WhiteElo "2574"]
[BlackElo "2158"]
[Annotator "ChessBase"]
[PlyCount "75"]
[EventDate "2019.08.17"]
[EventType "swiss"]
[EventCountry "AUT"]
[SourceTitle "playchess.com"]
[Source "ChessBase"]
[SourceQuality "1"]
[TimeControl "40/5400+30:1800+30"]

1. Nf3 {[%emt 0:00:00]} d5 {[%emt 0:00:00]} 2. d4 {[%emt 0:00:00]} e6 {[%emt 0:00:50]} 3. c4 {[%emt 0:00:00]} Nf6 {[%emt 0:00:23]} 4. g3 {[%emt 0:00:32]} c6 {[%emt 0:02:00]} 5. Nbd2 {[%emt 0:00:34]} c5 {[%emt 0:03:57]} 6. Bg2 {[%emt 0:04:10]} Be7 {[%emt 0:02:18]} 7. O-O {[%emt 0:00:23]} O-O {[%emt 0:00:32]} 8. dxc5 {[%emt 0:04:06]} Bxc5 {[%emt 0:01:50]} 9. Nb3 {[%emt 0:01:19]} Be7 {[%emt 0:01:02]} 10. cxd5 {[%emt 0:03:22]} exd5 {[%emt 0:07:27]} 11. Bf4 {[%emt 0:01:22]} Nc6 {[%emt 0:05:23]} 12. Rc1 {[%emt 0:01:45]} Be6 {[%emt 0:10:32]} 13. Nfd4 {[%emt 0:03:11]} Rc8 {[%emt 0:05:39]} 14. Nxc6 {[%emt 0:12:48]} Rxc6 {[%emt 0:03:51]} 15. Qd4 {[%emt 0:06:03]} Qb6 {[%emt 0:08:17]} 16. Qxb6 {[%emt 0:02:32]} axb6 {[%emt 0:00:06]} 17. Nd4 {[%emt 0:06:35]} Rc5 {[%emt 0:08:20]} 18. Be3 {[%emt 0:07:38]} Rfc8 {[%emt 0:01:40]} 19. Rcd1 {[%emt 0:01:34]} Ra5 {[%emt 0:03:03]} 20. a3 {[%emt 0:01:26]} b5 {[%emt 0:01:20]} 21. Rc1 {[%emt 0:08:03]} Rxc1 {[%emt 0:12:16]} 22. Rxc1 {[%emt 0:00:07]} Bd7 {[%emt 0:00:30]} 23. Nb3 {[%emt 0:12:58]} Ra8 {[%emt 0:01:02]} 24. Nc5 {[%emt 0:03:14]} Bc6 {[%emt 0:00:19]} 25. Nd3 {[%emt 0:00:51]} Nd7 {[%emt 0:06:19]} 26. Bh3 {[%emt 0:03:10]} Nf6 {[%emt 0:00:35]} 27. Ne5 {[%emt 0:01:59]} Be8 {[%emt 0:00:48]} 28. Bd4 {[%emt 0:01:34]} Bd6 {[%emt 0:00:17]} 29. Nd3 {[%emt 0:00:53]} Ne4 {[%emt 0:00:58]} 30. Be5 {[%emt 0:00:44]} Bf8 {[%emt 0:03:05]} 31. Bd4 {[%emt 0:02:04]} Ng5 {[%emt 0:00:33]} 32. Bg2 {[%emt 0:00:20]} Ne6 {[%emt 0:00:12]} 33. Be3 {[%emt 0:00:46]} Rd8 {[%emt 0:01:19]} 34. Kf1 {[%emt 0:00:37]} Be7 {[%emt 0:00:33]} 35. Bb6 {[%emt 0:00:48]} Rd6 {[%emt 0:02:24]} 36. Ba5 {[%emt 0:02:31]} Bf6 {[%emt 0:02:02]} 37. Rc8 {[%emt 0:00:45]} Nd8 {[%emt 0:01:19]} 38. Bc7 {[%emt 0:04:48]} 1-0

[Event "Vienna Chess Open 2019"]
[Site "Vienna"]
[Date "2019.08.17"]
[Round "1.2"]
[White "Janik, Igor"]
[Black "Morante Rafael, Aritz"]
[Result "1-0"]
[ECO "A57"]
[WhiteElo "2483"]
[BlackElo "2144"]
[Annotator "ChessBase"]
[PlyCount "85"]
[EventDate "2019.08.17"]
[EventType "swiss"]
[EventCountry "AUT"]
[SourceTitle "playchess.com"]
[Source "ChessBase"]
[SourceQuality "1"]
[TimeControl "40/5400+30:1800+30"]

1. d4 {[%emt 0:00:00]} Nf6 {[%emt 0:00:00]} 2. c4 {[%emt 0:00:00]} c5 {[%emt 0:00:19]} 3. d5 {[%emt 0:00:00]} b5 {[%emt 0:00:23]} 4. cxb5 {[%emt 0:00:00]} a6 {[%emt 0:00:25]} 5. e3 {[%emt 0:00:01]} g6 {[%emt 0:01:38]} 6. Nc3 {[%emt 0:00:13]} Bg7 {[%emt 0:01:03]} 7. Nf3 {[%emt 0:00:56]} O-O {[%emt 0:01:04]} 8. a4 {[%emt 0:00:06]} Bb7 {[%emt 0:03:24]} 9. Ra3 {[%emt 0:13:31]} e6 {[%emt 0:12:27]} 10. dxe6 {[%emt 0:00:06]} fxe6 {[%emt 0:00:36]} 11. Be2 {[%emt 0:00:10]} d5 {[%emt 0:05:07]} 12. O-O {[%emt 0:00:08]} axb5 {[%emt 0:01:51]} 13. Nxb5 {[%emt 0:03:00]} Ne4 {[%emt 0:04:50]} 14. Nd2 {[%emt 0:01:30]} Nd6 {[%emt 0:04:51]} 15. b3 {[%emt 0:03:56]} Nxb5 {[%emt 0:03:51]} 16. Bxb5 {[%emt 0:00:34]} Qg5 {[%emt 0:10:25]} 17. Qc2 {[%emt 0:03:49]} Na6 {[%emt 0:07:13]} 18. f4 {[%emt 0:04:22]} Qe7 {[%emt 0:03:06]} 19. Nf3 {[%emt 0:00:14]} e5 {[%emt 0:05:19]} 20. fxe5 {[%emt 0:01:36]} Bxe5 {[%emt 0:01:22]} 21. Qe2 {[%emt 0:01:35]} Nb4 {[%emt 0:05:42]} 22. Bd2 {[%emt 0:02:53]} Bb2 {[%emt 0:07:13]} 23. Bxb4 {[%emt 0:00:18]} cxb4 {[%emt 0:00:04]} 24. Ra2 {[%emt 0:00:16]} Bc3 {[%emt 0:00:24]} 25. Qd3 {[%emt 0:02:00]} Rf6 {[%emt 0:03:54]} 26. a5 {[%emt 0:09:01]} Raf8 {[%emt 0:01:47]} 27. a6 {[%emt 0:00:19]} Ba8 {[%emt 0:00:40]} 28. Raf2 {[%emt 0:02:59]} Re6 {[%emt 0:02:37]} 29. Re2 {[%emt 0:01:10]} Ref6 {[%emt 0:01:22]} 30. Rff2 {[%emt 0:00:17]} Kg7 {[%emt 0:00:38]} 31. h3 {[%emt 0:18:00]} h6 {[%emt 0:02:49]} 32. Nd4 {[%emt 0:02:22]} Rxf2 {[%emt 0:02:50]} 33. Rxf2 {[%emt 0:00:02]} Rxf2 {[%emt 0:00:14]} 34. Kxf2 {[%emt 0:00:06]} Qh4+ {[%emt 0:00:43]} 35. Kg1 {[%emt 0:00:53]} Qe1+ {[%emt 0:01:22]} 36. Kh2 {[%emt 0:00:13]} Qd2 {[%emt 0:05:02]} 37. Qxd2 {[%emt 0:03:41]} Bxd2 {[%emt 0:00:02]} 38. Ne6+ {[%emt 0:00:08]} Kf6 {[%emt 0:01:37]} 39. Nc7 {[%emt 0:00:13]} Bxe3 {[%emt 0:00:13]} 40. Nxa8 {[%emt 0:00:05]} Ke7 {[%emt 0:00:13]} 41. Nc7 {[%emt 0:30:59]} Kd6 {[%emt 0:30:24]} 42. Ne8+ {[%emt 0:00:05]} Ke7 {[%emt 0:00:14]} 43. Kg3 {[%emt 0:00:08]} 1-0

[Event "Vienna Chess Open 2019"]
[Site "Vienna"]
[Date "2019.08.17"]
[Round "1.3"]
[White "Pupier, Terry"]
[Black "Schreiner, Peter"]
[Result "0-1"]
[ECO "C44"]
[WhiteElo "2144"]
[BlackElo "2481"]
[Annotator "ChessBase"]
[PlyCount "94"]
[EventDate "2019.08.17"]
[EventType "swiss"]
[EventCountry "AUT"]
[SourceTitle "playchess.com"]
[Source "ChessBase"]
[SourceQuality "1"]
[TimeControl "40/5400+30:1800+30"]

1. e4 {[%emt 0:00:00]} e5 {[%emt 0:00:00]} 2. Nf3 {[%emt 0:00:00]} Nc6 {[%emt 0:00:00]} 3. d4 {[%emt 0:00:00]} exd4 {[%emt 0:00:00]} 4. Nxd4 {[%emt 0:00:00]} Bb4+ {[%emt 0:01:47]} 5. c3 {[%emt 0:01:19]} Bc5 {[%emt 0:00:05]} 6. Nxc6 {[%emt 0:01:23]} bxc6 {[%emt 0:00:20]} 7. Bd3 {[%emt 0:02:50]} d5 {[%emt 0:03:36]} 8. Qe2 {[%emt 0:06:11]} Qe7 {[%emt 0:08:27]} 9. O-O {[%emt 0:08:51]} Nf6 {[%emt 0:04:40]} 10. exd5 {[%emt 0:23:11]} Qxe2 {[%emt 0:00:54]} 11. Bxe2 {[%emt 0:00:04]} cxd5 {[%emt 0:00:15]} 12. Bf4 {[%emt 0:01:26]} c6 {[%emt 0:06:59]} 13. Bd3 {[%emt 0:05:08]} O-O {[%emt 0:10:30]} 14. Nd2 {[%emt 0:05:04]} a5 {[%emt 0:04:16]} 15. h3 {[%emt 0:07:11]} Bb6 {[%emt 0:09:29]} 16. Rfe1 {[%emt 0:02:25]} Be6 {[%emt 0:02:18]} 17. Nf3 {[%emt 0:02:18]} Rfe8 {[%emt 0:11:42]} 18. Nd4 {[%emt 0:07:47]} Bd7 {[%emt 0:01:52]} 19. Nf5 {[%emt 0:07:44]} g6 {[%emt 0:07:35]} 20. Nd4 {[%emt 0:03:46]} a4 {[%emt 0:06:39]} 21. Nf3 {[%emt 0:01:31]} Be6 {[%emt 0:06:00]} 22. Nd4 {[%emt 0:02:01]} Bd7 {[%emt 0:01:25]} 23. Nf3 {[%emt 0:00:07]} Nh5 {[%emt 0:06:13]} 24. Bh2 {[%emt 0:00:47]} f6 {[%emt 0:00:31]} 25. Rad1 {[%emt 0:01:24]} Ng7 {[%emt 0:00:28]} 26. Bc2 {[%emt 0:01:57]} Rxe1+ {[%emt 0:00:24]} 27. Nxe1 {[%emt 0:02:01]} Bf5 {[%emt 0:00:52]} 28. Kf1 {[%emt 0:00:54]} Kf7 {[%emt 0:01:54]} 29. Bxf5 {[%emt 0:00:38]} Nxf5 {[%emt 0:00:12]} 30. Nc2 {[%emt 0:00:05]} h5 {[%emt 0:01:21]} 31. Nb4 {[%emt 0:02:30]} Rc8 {[%emt 0:01:03]} 32. g4 {[%emt 0:01:16]} hxg4 {[%emt 0:01:45]} 33. hxg4 {[%emt 0:00:04]} Ng7 {[%emt 0:01:10]} 34. f3 {[%emt 0:03:07]} Ne6 {[%emt 0:00:50]} 35. Nc2 {[%emt 0:00:58]} g5 {[%emt 0:00:50]} 36. Kg2 {[%emt 0:01:12]} Bc5 {[%emt 0:00:58]} 37. Bg3 {[%emt 0:00:25]} Ra8 {[%emt 0:00:22]} 38. Rh1 {[%emt 0:00:23]} Ra7 {[%emt 0:00:10]} 39. a3 {[%emt 0:00:42]} Be7 {[%emt 0:00:54]} 40. Nb4 {[%emt 0:00:41]} Rb7 {[%emt 0:00:28]} 41. Rb1 {[%emt 0:30:25]} d4 {[%emt 0:06:11]} 42. Be1 {[%emt 0:00:00]} c5 {[%emt 0:14:14]} 43. Nd3 {[%emt 0:00:00]} c4 {[%emt 0:03:30]} 44. Nb4 {[%emt 0:00:00]} Nf4+ {[%emt 0:01:11]} 45. Kf1 {[%emt 0:00:00]} d3 {[%emt 0:01:39]} 46. Nc6 {[%emt 0:00:00]} Rc7 {[%emt 0:01:15]} 47. Nb4 {[%emt 0:00:00]} Rc8 {[%emt 0:01:20]} 0-1

[Event "Vienna Chess Open 2019"]
[Site "Vienna"]
[Date "2019.08.17"]
[Round "1.4"]
[White "Mons, Leon"]
[Black "Thannheiser, Thomas"]
[Result "1/2-1/2"]
[ECO "A05"]
[WhiteElo "2559"]
[BlackElo "2156"]
[Annotator "ChessBase"]
[PlyCount "117"]
[EventDate "2019.08.17"]
[EventType "swiss"]
[EventCountry "AUT"]
[SourceTitle "playchess.com"]
[Source "ChessBase"]
[SourceQuality "1"]
[TimeControl "40/5400+30:1800+30"]

1. Nf3 {[%emt 0:00:00]} Nf6 {[%emt 0:00:00]} 2. c4 {[%emt 0:00:00]} e6 {[%emt 0:00:07]} 3. b3 {[%emt 0:00:33]} b6 {[%emt 0:00:34]} 4. g3 {[%emt 0:01:41]} Bb7 {[%emt 0:00:11]} 5. Bg2 {[%emt 0:00:08]} Be7 {[%emt 0:00:46]} 6. Bb2 {[%emt 0:00:20]} O-O {[%emt 0:00:26]} 7. O-O {[%emt 0:00:08]} c5 {[%emt 0:00:46]} 8. e3 {[%emt 0:02:14]} d6 {[%emt 0:02:32]} 9. Nc3 {[%emt 0:03:38]} Nbd7 {[%emt 0:01:15]} 10. d3 {[%emt 0:07:32]} a6 {[%emt 0:02:30]} 11. Qe2 {[%emt 0:04:58]} Qc7 {[%emt 0:02:17]} 12. e4 {[%emt 0:10:15]} Rfe8 {[%emt 0:05:16]} 13. Nh4 {[%emt 0:11:49]} Ne5 {[%emt 0:14:00]} 14. f4 {[%emt 0:00:12]} Nc6 {[%emt 0:00:11]} 15. Nf3 {[%emt 0:00:55]} Nd4 {[%emt 0:09:05]} 16. Nxd4 {[%emt 0:00:24]} cxd4 {[%emt 0:00:02]} 17. Nb1 {[%emt 0:11:50]} e5 {[%emt 0:00:14]} 18. Nd2 {[%emt 0:06:01]} Bc8 {[%emt 0:10:07]} 19. h3 {[%emt 0:02:52]} Rb8 {[%emt 0:03:05]} 20. Rac1 {[%emt 0:04:33]} Nd7 {[%emt 0:02:14]} 21. Nf3 {[%emt 0:07:23]} Qd8 {[%emt 0:05:19]} 22. Qf2 {[%emt 0:04:40]} f6 {[%emt 0:01:14]} 23. Qc2 {[%emt 0:01:26]} b5 {[%emt 0:03:38]} 24. Nh4 b4 {[%emt 0:00:30]} 25. Nf3 {[%emt 0:04:55]} Nc5 {[%emt 0:00:26]} 26. Rcd1 {[%emt 0:01:33]} a5 {[%emt 0:00:43]} 27. Bc1 {[%emt 0:00:29]} Bd7 {[%emt 0:00:51]} 28. g4 {[%emt 0:01:54]} a4 {[%emt 0:00:57]} 29. f5 {[%emt 0:02:28]} Rf8 {[%emt 0:16:57]} 30. Rf2 {[%emt 0:01:18]} Kh8 {[%emt 0:00:30]} 31. Bf1 {[%emt 0:00:41]} Ra8 {[%emt 0:00:49]} 32. Re1 {[%emt 0:01:32]} Bc6 {[%emt 0:00:55]} 33. Rg2 {[%emt 0:00:55]} axb3 {[%emt 0:01:16]} 34. axb3 {[%emt 0:00:01]} Qc7 {[%emt 0:02:05]} 35. h4 {[%emt 0:01:19]} Qb7 {[%emt 0:02:30]} 36. g5 {[%emt 0:02:21]} Ra1 {[%emt 0:01:56]} 37. g6 {[%emt 0:01:31]} Rfa8 {[%emt 0:00:41]} 38. Qd1 {[%emt 0:01:21]} Bf8 {[%emt 0:02:02]} 39. Ng5 {[%emt 0:02:46]} h6 {[%emt 0:04:02]} 40. Nf7+ {[%emt 0:00:42]} Kg8 {[%emt 0:00:07]} 41. Be2 {[%emt 0:10:07]} Be8 {[%emt 0:03:07]} 42. Bh5 {[%emt 0:00:11]} Rxc1 {[%emt 0:00:22]} 43. Qxc1 {[%emt 0:00:05]} Nxd3 {[%emt 0:00:09]} 44. Qd1 {[%emt 0:01:45]} Nxe1 {[%emt 0:02:17]} 45. Qxe1 {[%emt 0:00:08]} Bc6 {[%emt 0:02:18]} 46. Bf3 {[%emt 0:01:28]} Qa7 {[%emt 0:05:27]} 47. Kh2 {[%emt 0:02:21]} Qb7 {[%emt 0:01:29]} 48. Qb1 {[%emt 0:02:48]} Qb6 {[%emt 0:02:36]} 49. Ra2 {[%emt 0:01:39]} Rxa2+ {[%emt 0:02:00]} 50. Qxa2 {[%emt 0:00:03]} d3 {[%emt 0:00:25]} 51. Kg2 {[%emt 0:02:01]} Qd4 {[%emt 0:14:57]} 52. Qf2 {[%emt 0:00:53]} d2 {[%emt 0:00:53]} 53. Qxd4 {[%emt 0:00:30]} exd4 {[%emt 0:00:01]} 54. Kf2 {[%emt 0:00:59]} Bxe4 {[%emt 0:00:07]} 55. Bxe4 {[%emt 0:00:07]} d1=Q {[%emt 0:00:18]} 56. Bd5 {[%emt 0:00:04]} Be7 {[%emt 0:00:06]} 57. Ng5+ {[%emt 0:00:13]} Kh8 {[%emt 0:00:32]} 58. Nf7+ {[%emt 0:00:04]} Kg8 {[%emt 0:00:18]} 59. Ng5+ {[%emt 0:00:07]} 1/2-1/2

[Event "Vienna Chess Open 2019"]
[Site "Vienna"]
[Date "2019.08.17"]
[Round "1.4"]
[White "Yankelevich, Lev"]
[Black "Villwock, Martin"]
[Result "1-0"]
[ECO "A61"]
[WhiteElo "2480"]
[BlackElo "2144"]
[Annotator "ChessBase"]
[PlyCount "107"]
[EventDate "2019.08.17"]
[EventType "swiss"]
[EventCountry "AUT"]
[SourceTitle "playchess.com"]
[Source "ChessBase"]
[SourceQuality "1"]
[TimeControl "40/5400+30:1800+30"]

1. d4 {[%emt 0:00:00]} Nf6 {[%emt 0:00:00]} 2. c4 {[%emt 0:00:00]} c5 {[%emt 0:00:00]} 3. d5 {[%emt 0:00:00]} e6 {[%emt 0:00:07]} 4. Nc3 {[%emt 0:00:00]} exd5 {[%emt 0:00:05]} 5. cxd5 {[%emt 0:00:00]} d6 {[%emt 0:00:14]} 6. Nf3 {[%emt 0:00:00]} g6 {[%emt 0:00:28]} 7. Nd2 {[%emt 0:00:00]} Nbd7 {[%emt 0:00:54]} 8. e4 {[%emt 0:00:05]} Bg7 {[%emt 0:00:26]} 9. Be2 {[%emt 0:00:06]} O-O {[%emt 0:00:37]} 10. O-O {[%emt 0:00:04]} a6 {[%emt 0:01:18]} 11. a4 {[%emt 0:00:04]} Re8 {[%emt 0:01:25]} 12. f4 {[%emt 0:02:05]} Rb8 {[%emt 0:02:02]} 13. a5 {[%emt 0:00:49]} b5 {[%emt 0:02:37]} 14. axb6 {[%emt 0:00:09]} Nxb6 {[%emt 0:00:34]} 15. Bf3 {[%emt 0:04:50]} Qc7 {[%emt 0:04:47]} 16. Re1 {[%emt 0:00:21]} c4 {[%emt 0:04:44]} 17. Nf1 {[%emt 0:00:13]} Nfd7 {[%emt 0:02:57]} 18. Be3 {[%emt 0:12:25]} Nc5 {[%emt 0:03:13]} 19. Re2 {[%emt 0:00:32]} Nd3 {[%emt 0:03:37]} 20. Ra3 {[%emt 0:03:26]} f5 {[%emt 0:09:02]} 21. exf5 {[%emt 0:05:56]} Bxf5 {[%emt 0:07:11]} 22. Rxa6 {[%emt 0:01:41]} Nb4 {[%emt 0:04:01]} 23. Nb5 {[%emt 0:20:53]} Qd7 {[%emt 0:03:49]} 24. Rxb6 {[%emt 0:02:15]} Rxb6 {[%emt 0:01:02]} 25. Bxb6 {[%emt 0:00:05]} Rxe2 {[%emt 0:01:16]} 26. Qxe2 {[%emt 0:07:09]} Qxb5 {[%emt 0:00:47]} 27. Ba7 {[%emt 0:00:16]} Qd7 {[%emt 0:04:59]} 28. Be3 {[%emt 0:01:23]} Bd3 {[%emt 0:01:45]} 29. Qd2 {[%emt 0:00:53]} Nc2 {[%emt 0:01:15]} 30. Be2 {[%emt 0:02:29]} Qb5 {[%emt 0:07:22]} 31. f5 {[%emt 0:01:20]} Qb4 {[%emt 0:07:03]} 32. Bxd3 {[%emt 0:01:43]} cxd3 {[%emt 0:04:04]} 33. Qxd3 {[%emt 0:01:27]} Nxe3 {[%emt 0:01:22]} 34. Nxe3 {[%emt 0:00:45]} Qe1+ {[%emt 0:02:59]} 35. Nf1 {[%emt 0:00:33]} gxf5 {[%emt 0:03:31]} 36. Qxf5 {[%emt 0:01:42]} Bd4+ {[%emt 0:00:12]} 37. Kh1 {[%emt 0:00:04]} Bxb2 {[%emt 0:01:36]} 38. g3 {[%emt 0:00:04]} Qe5 {[%emt 0:01:26]} 39. Qxe5 {[%emt 0:00:17]} Bxe5 {[%emt 0:00:11]} 40. Kg2 {[%emt 0:00:57]} Kf7 {[%emt 0:00:41]} 41. Kf3 {[%emt 0:30:10]} Kf6 {[%emt 0:30:59]} 42. Ke4 {[%emt 0:02:22]} Bc3 {[%emt 0:01:24]} 43. Ne3 {[%emt 0:00:22]} Bb4 {[%emt 0:00:31]} 44. Nf5 {[%emt 0:01:49]} Kg5 {[%emt 0:00:38]} 45. h3 {[%emt 0:00:25]} Bc5 {[%emt 0:01:30]} 46. Ng7 {[%emt 0:02:18]} Kf6 {[%emt 0:00:30]} 47. Ne6 {[%emt 0:00:12]} Bf2 {[%emt 0:00:55]} 48. g4 {[%emt 0:00:06]} h6 {[%emt 0:00:30]} 49. Nd4 {[%emt 0:01:28]} Bxd4 {[%emt 0:03:27]} 50. Kxd4 {[%emt 0:00:07]} Kg5 {[%emt 0:00:04]} 51. Ke4 {[%emt 0:00:02]} Kh4 {[%emt 0:00:48]} 52. Kf5 {[%emt 0:00:05]} Kxh3 {[%emt 0:00:28]} 53. g5 {[%emt 0:00:05]} hxg5 {[%emt 0:00:20]} 54. Kxg5 {[%emt 0:00:02]} 1-0